fUSD/lending_fUSD_20241021
["ID","MTS","AMOUNT","RATE_DAILY","PERIOD"]
[340625264,1729551032015,-160.16,0.00044764,120]
[340625265,1729551032024,-155.35,0.00044823,120]
[340625266,1729551032034,-1776.4775,0.00044941,7]
[340625267,1729551032043,-1000.0,0.00045166,2]
[340625268,1729551032053,-193.41,0.00045429,2]
[340625269,1729551032063,-1985.657,0.00045479,74]
[340625270,1729551032072,-211.97,0.00045739,2]
[340625271,1729551032082,-1000.0,0.000464,7]
[340625272,1729551032092,-392.24,0.00046642,2]
[340625273,1729551032101,-734.71715127,0.00046685,90]
[340625274,1729551032110,-555.0,0.00046998,2]
[340625275,1729551032120,-934.0,0.00046998,2]
[340625276,1729551032129,-3000.0,0.000471,2]
[340625277,1729551032139,-1000.0,0.000472,30]
[340625278,1729551032148,-359.7546,0.0004759,2]
[340625279,1729551032157,-500.0,0.00047671,120]
[340625280,1729551032167,-500.0,0.00047671,120]
[340625281,1729551032176,-500.0,0.00047671,120]
[340625282,1729551032186,-500.0,0.00047671,120]
[340625283,1729551032196,-500.0,0.00047671,120]
[340625284,1729551032206,-2141.23,0.00047671,120]
[340625285,1729551032216,-500.0,0.00047671,120]
[340625286,1729551032226,-500.0,0.00047671,120]
[340625287,1729551032236,-161.18087938,0.00047671,120]
[340625288,1729551032246,-500.0,0.00047671,120]
[340625289,1729551032256,-500.0,0.00047671,120]
[340625290,1729551032265,-502.66438831,0.00047671,120]
[340625291,1729551032275,-3047.08,0.00047671,120]
[340625292,1729551032284,-500.0,0.00047671,120]
[340625293,1729551032294,-1939.88,0.00047671,120]
[340625294,1729551032304,-500.0,0.00047671,120]
[340625296,1729551032313,-183.61370075,0.00047671,120]
[340625298,1729551032323,-563.69,0.00047671,60]
[340625300,1729551032333,-500.0,0.00047671,14]
[340625302,1729551032342,-500.0,0.00047671,120]
[340625304,1729551032353,-500.0,0.00047671,120]
[340625306,1729551032362,-500.0,0.00047671,120]
[340625308,1729551032372,-500.0,0.00047671,120]
[340625310,1729551032381,-289.2,0.00047671,120]
[340625312,1729551032392,-500.0,0.00047671,120]
[340625314,1729551032404,-500.0,0.00047671,120]
[340625316,1729551032421,-500.0,0.00047671,120]
[340625318,1729551032434,-707.28,0.00047671,120]
[340625320,1729551032445,-500.0,0.00047671,120]
[340625322,1729551032459,-500.0,0.00047671,120]
[340625324,1729551032469,-500.0,0.00047671,120]
[340625326,1729551032478,-500.0,0.00047671,120]
[340625328,1729551032488,-500.0,0.00047671,120]
[340625330,1729551032498,-1000.0,0.00047671,120]
[340625333,1729551032508,-500.0,0.00047671,120]
[340625335,1729551032517,-422.35401937,0.00047671,7]
[340625337,1729551032527,-1272.36,0.00047671,120]
[340625339,1729551032536,-1645.1261836,0.0004769,15]
[340625341,1729551032546,-249.12,0.0004778,30]
[340625343,1729551032556,-207.6,0.0004778,30]
[340625344,1729551032565,-173.0,0.0004778,30]
[340625346,1729551032575,-865.03,0.0004778,30]
[340625348,1729551032585,-487.69,0.0004778,10]
[340625349,1729551032594,-607.46327334,0.0004779,19]
[340625350,1729551032604,-3581.9784395,0.0004779,2]
[340625351,1729551032617,-536.83568415,0.0004779,2]
[340625352,1729551032630,-2567.75290929,0.0004779,2]
[340625353,1729551032646,-56245.11876706,0.0004779,2]
[340625354,1729551032655,-960.8149,0.0004779,2]
[340625355,1729551032665,-2500.0,0.0004779,2]
[340625356,1729551032674,-680.7723,0.000478,2]
[340625357,1729551032684,-159.88030412,0.00047873,7]
[340625358,1729551032693,-201.15117732,0.00047873,2]
[340625359,1729551032703,-156.06,0.00047882,120]
[340625360,1729551032715,-3500.22,0.00047889,120]
[340625361,1729551032727,-500.0,0.00047889,120]
[340625362,1729551032737,-500.0,0.00047889,120]
[340625363,1729551032746,-500.0,0.00047889,120]
[340625364,1729551032756,-500.0,0.00047889,120]
[340625365,1729551032765,-544.53531454,0.00047889,120]
[340625366,1729551032775,-335.7249603,0.00047889,120]
[340625367,1729551032784,-1322.07,0.00047889,120]
[340625368,1729551032794,-500.0,0.00047889,120]
[340625369,1729551032803,-500.0,0.00047889,120]
[340625370,1729551032812,-500.0,0.00047889,120]
[340625371,1729551032822,-500.0,0.00047889,120]
[340625372,1729551032831,-2054.9,0.00047889,120]
[340625373,1729551032840,-2630.0,0.00047889,120]
[340625374,1729551032850,-2463.08,0.00047889,120]
[340625375,1729551032859,-2025.89,0.00047889,120]
[340625376,1729551032869,-2910.24,0.00047889,120]
[340625377,1729551032879,-500.0,0.00047889,120]
[340625378,1729551032888,-500.0,0.00047889,120]
[340625379,1729551032898,-2973.28,0.00047889,120]
[340625380,1729551032907,-500.0,0.00047889,120]
[340625381,1729551032917,-500.0,0.00047889,120]
[340625382,1729551032926,-493.63891796,0.00047889,120]
[340625383,1729551032935,-500.0,0.00047889,120]
[340625384,1729551032945,-500.0,0.00047889,120]
[340625385,1729551032955,-2325.06,0.00047889,120]
[340625386,1729551032970,-458.82,0.00047889,120]
[340625387,1729551032980,-500.0,0.00047889,120]
[340625388,1729551032989,-2770.18,0.00047889,120]
[340625389,1729551033002,-500.0,0.00047889,120]
[340625390,1729551033012,-500.0,0.00047889,120]
[340625391,1729551033022,-2300.53,0.00047889,120]
[340625392,1729551033032,-523.71,0.00047889,120]
[340625393,1729551033042,-500.0,0.00047889,120]
[340625394,1729551033054,-2354.89,0.00047889,120]
[340625395,1729551033064,-501.22,0.00047889,120]
[340625396,1729551033074,-500.0,0.00047889,120]
[340625397,1729551033084,-500.0,0.00047889,120]
[340625398,1729551033095,-127242.501027,0.0004789,10]
[340625399,1729551033106,-37659.1972,0.0004789,2]
[340625400,1729551033116,-53366.8173,0.0004789,2]
[340625401,1729551033126,-1000.0,0.0004789,2]
[340625402,1729551033136,-7500.0,0.0004789,120]
[340625403,1729551033146,-26143.2862,0.000479,2]
[340625404,1729551033156,-163.0763083,0.000479,30]
[340625405,1729551033166,-500.0,0.000479,2]
[340625406,1729551033176,-227314.47589133,0.000479,2]
[340625407,1729551033188,-6109.13788547,0.000479,2]
[340625408,1729551033203,-11576.3862232,0.000479,2]
[340625409,1729551033213,-88888.0,0.000479,120]
[340625410,1729551033223,-183.94413195,0.000479,2]
[340625411,1729551033234,-933.13451398,0.000479,2]
[340625412,1729551033244,-21207.0835045,0.00047925,10]
[340625413,1729551033254,-8137.7126858,0.00047935,10]
[340625414,1729551033266,-2795.72407927,0.00047935,10]
[340625415,1729551033278,-1790.81333763,0.00047935,10]
[340625416,1729551033288,-500.0,0.00047945,120]
[340625417,1729551033298,-395.8387525,0.00047945,120]
[340625418,1729551033310,-104.1612475,0.00047945,120]
[340625419,1729551033319,-500.0,0.00047945,120]
[340625420,1729551033329,-500.0,0.00047945,120]
[340625421,1729551033340,-500.0,0.00047945,120]
[340625422,1729551033350,-2141.23,0.00047945,120]
[340625423,1729551033359,-500.0,0.00047945,120]
[340625424,1729551033369,-500.0,0.00047945,120]
[340625425,1729551033380,-323.64,0.00047945,120]
[340625426,1729551033390,-175.78883182,0.00047945,120]
[340625427,1729551033400,-3047.08,0.00047945,120]
[340625428,1729551033410,-500.0,0.00047945,120]
[340625429,1729551033419,-410.97727973,0.00047945,120]
[340625430,1729551033431,-978.62989679,0.00047945,120]
[340625431,1729551033442,-550.27282348,0.00047945,120]
[340625432,1729551033453,-136.43231419,0.00047945,120]
[340625433,1729551033465,-427.87768581,0.00047945,120]
[340625434,1729551033475,-563.69,0.00047945,60]
[340625435,1729551033485,-140.81953944,0.00047945,14]
[340625436,1729551033497,-359.18046056,0.00047945,14]
[340625437,1729551033507,-500.0,0.00047945,120]
[340625438,1729551033516,-500.0,0.00047945,120]
[340625439,1729551033526,-500.0,0.00047945,120]
[340625440,1729551033535,-442.95,0.00047945,120]
[340625441,1729551033545,-500.0,0.00047945,120]
[340625442,1729551033558,-546.63066563,0.00047945,120]
[340625443,1729551033567,-500.0,0.00047945,120]
[340625444,1729551033578,-182.71136928,0.00047945,120]
[340625445,1729551033590,-524.56863072,0.00047945,120]
[340625446,1729551033600,-24.44110445,0.00047945,120]
[340625447,1729551033612,-475.55889555,0.00047945,120]
[340625448,1729551033621,-500.0,0.00047945,120]
[340625449,1729551033631,-500.0,0.00047945,120]
[340625450,1729551033641,-500.0,0.00047945,120]
[340625451,1729551033650,-500.0,0.00047945,120]
[340625452,1729551033660,-1000.0,0.00047945,120]
[340625453,1729551033669,-500.0,0.00047945,120]
[340625454,1729551033679,-724.44110445,0.00047945,120]
[340625455,1729551033691,-547.91889555,0.00047945,120]
[340625456,1729551033701,-151.20454897,0.00047966,2]
[340625457,1729551033711,-500.0,0.00047975,31]
[340625458,1729551033724,-406.09380907,0.00047975,31]
[340625459,1729551033734,-1998.31965542,0.00047976,10]
[340625460,1729551033745,-306.27514486,0.00047976,10]
[340625461,1729551033761,-2497.50370162,0.00047976,10]
[340625463,1729551038183,-1266.98,0.00047889,120]
[340625464,1729551038192,-6691.56185658,0.00047976,10]
[340625465,1729551038204,-342.06210541,0.00047976,10]
[340625466,1729551038216,-318.4011789,0.00047976,10]
[340625467,1729551038228,-4811.54316081,0.00047976,10]
[340625468,1729551038238,-1000.0,0.0004798,22]
[340625469,1729551038248,-6699.70681419,0.0004798,10]
[340625470,1729551038260,-400.0,0.0004798,10]
[340625471,1729551038275,-450.0,0.00044764,120]
[340625472,1729551038284,-6020.20833297,0.0004798,10]
[340625473,1729551038295,-1122.35208928,0.0004798,10]
[340625474,1729551038307,-5340.98495427,0.0004798,10]
[340625475,1729551038320,-338.26352533,0.0004798,10]
[340625476,1729551038437,-5526.98448946,0.0004798,10]
[340625477,1729551038446,-2290.74822409,0.0004799,5]
[340625478,1729551038455,-406.4,0.0004799,10]
[340625479,1729551038464,-255.50265794,0.00047994,2]
[340625480,1729551038476,-6016.27157419,0.00047994,2]
[340625481,1729551038487,-6515.0,0.00047994,2]
[340625482,1729551038498,-4131.21961424,0.00047994,2]
[340625483,1729551039195,-2793.16,0.00047889,120]
[340625484,1729551039204,-500.0,0.00047889,120]
[340625485,1729551039214,-15552.97906083,0.00047994,2]
[340625486,1729551039224,-5241.8463846,0.00047994,2]
[340625487,1729551039233,-2334.0667643,0.00047994,2]
[340625488,1729551039243,-823.8218787,0.00047994,2]
[340625489,1729551039252,-2000.0,0.00047999,120]
[340625490,1729551039261,-500.0,0.00047999,120]
[340625491,1729551039271,-500.0,0.00047999,120]
[340625492,1729551039280,-500.0,0.00047999,120]
[340625493,1729551039289,-500.0,0.00047999,120]
[340625494,1729551039298,-500.0,0.00047999,120]
[340625495,1729551039308,-500.0,0.00047999,120]
[340625496,1729551039320,-493.992,0.00047999,120]
[340625497,1729551039329,-324.0,0.00048,7]
[340625499,1729551039341,-1000.0,0.00048,120]
[340625500,1729551039351,-30117.55134818,0.00048,120]
[340625501,1729551039360,-139601.08451353,0.00048,120]
[340625503,1729551039372,-182934.36319736,0.00048,120]
[340625506,1729551039383,-520812.55228911,0.00048,120]
[340625508,1729551039394,-963.85,0.00048,2]
[340625510,1729551039404,-956.58790908,0.00048,60]
[340625511,1729551039413,-4012.64858408,0.00048,60]
[340625513,1729551039422,-8118.52337902,0.00048,120]
[340625514,1729551039432,-2279.0,0.00048,5]
[340625515,1729551039441,-2147.63112999,0.00048,4]
[340625516,1729551039450,-150.0,0.00048,90]
[340625517,1729551039460,-1000000.0,0.00048,120]
[340625518,1729551039469,-1300000.0,0.00048,120]
[340625519,1729551039478,-211.0,0.00048,30]
[340625520,1729551039487,-150.24,0.00048,120]
[340625521,1729551039497,-924.0,0.00048,30]
[340625522,1729551039506,-204.0,0.00048,30]
[340625523,1729551039516,-505.34,0.00048,60]
[340625524,1729551039526,-150.0,0.00048,48]
[340625525,1729551039535,-150.0,0.00048,48]
[340625526,1729551039544,-150.0,0.00048,48]
[340625527,1729551039553,-150.0,0.00048,48]
[340625528,1729551039563,-150.0,0.00048,48]
[340625529,1729551039572,-150.0,0.00048,48]
[340625530,1729551039582,-150.0,0.00048,48]
[340625531,1729551039591,-150.0,0.00048,48]
[340625532,1729551039600,-150.0,0.00048,48]
[340625533,1729551039609,-150.0,0.00048,48]
[340625534,1729551039618,-150.0,0.00048,48]
[340625535,1729551039627,-150.0,0.00048,48]
[340625536,1729551039637,-200.0,0.00048,48]
[340625537,1729551039646,-151.0,0.00048,14]
[340625538,1729551039655,-150.0,0.00048,30]
[340625539,1729551039665,-1000.0,0.00048,7]
[340625540,1729551039674,-150.0,0.00048,30]
[340625541,1729551039684,-150.0,0.00048,30]
[340625542,1729551039693,-150.0,0.00048,30]
[340625543,1729551039702,-205.49160573,0.00048,30]
[340625544,1729551039717,-150.0,0.00048,30]
[340625545,1729551039727,-250.0,0.00048,30]
[340625546,1729551039736,-150.0,0.00048,30]
[340625547,1729551039747,-150.0,0.00048,30]
[340625548,1729551039756,-250.1,0.00048,120]
[340625549,1729551039765,-1000.0,0.00048,22]
[340625550,1729551039775,-151.0,0.00048,14]
[340625551,1729551039784,-480.757814,0.00048,14]
[340625552,1729551039793,-480.757814,0.00048,14]
[340625553,1729551039802,-151.0,0.00048,14]
[340625554,1729551039811,-150.0,0.00048004,30]
[340625555,1729551039820,-150.0,0.00048009,30]
[340625557,1729551039829,-150.0,0.0004801,30]
[340625559,1729551039838,-150.0,0.00048013,30]
[340625561,1729551039847,-150.0,0.00048018,30]
[340625563,1729551039856,-150.0,0.0004802,30]
[340625565,1729551039866,-150.0,0.00048022,30]
[340625567,1729551039875,-150.0,0.00048027,30]
[340625569,1729551039885,-150.0,0.00048028,30]
[340625571,1729551039894,-150.0,0.0004803,30]
[340625573,1729551039904,-150.0,0.00048031,30]
[340625575,1729551039913,-150.0,0.00048036,30]
[340625577,1729551039923,-150.0,0.0004804,30]
[340625579,1729551039932,-150.0,0.0004804,30]
[340625581,1729551039941,-150.0,0.0004804,30]
[340625583,1729551039950,-150.0,0.00048045,30]
[340625584,1729551039960,-150.0,0.00048049,30]
[340625586,1729551039970,-150.0,0.0004805,30]
[340625588,1729551039979,-150.0,0.00048054,30]
[340625590,1729551039989,-150.0,0.00048055,30]
[340625593,1729551039999,-150.0,0.00048055,30]
[340625595,1729551040009,-150.0,0.00048058,30]
[340625596,1729551040019,-150.0,0.0004806,30]
[340625598,1729551040029,-150.0,0.00048063,30]
[340625601,1729551040039,-150.0,0.00048063,30]
[340625602,1729551040049,-150.0,0.00048067,30]
[340625604,1729551040058,-150.0,0.0004807,30]
[340625606,1729551040068,-150.0,0.00048072,30]
[340625608,1729551040077,-150.0,0.00048076,30]
[340625610,1729551040087,-150.0,0.0004808,30]
[340625612,1729551040097,-150.0,0.0004808,30]
[340625627,1729551040239,-150.0,0.00048081,30]
[340625630,1729551040253,-150.0,0.00048083,30]
[340625632,1729551040263,-150.0,0.00048085,30]
[340625634,1729551040273,-150.0,0.0004809,30]
[340625636,1729551040283,-150.0,0.0004809,30]
[340625638,1729551040292,-150.0,0.00048094,30]
[340625640,1729551040301,-150.0,0.00048099,30]
[340625642,1729551040310,-150.0,0.000481,30]
[340625643,1729551040321,-150.0,0.00048103,30]
[340625644,1729551040330,-150.0,0.00048108,30]
[340625645,1729551040340,-150.0,0.0004811,30]
[340625646,1729551040350,-150.0,0.0004811,30]
[340625647,1729551040359,-150.0,0.0004811,30]
[340625648,1729551040369,-150.0,0.00048112,30]
[340625649,1729551040379,-150.0,0.00048117,30]
[340625650,1729551040388,-150.0,0.0004812,30]
[340625651,1729551040397,-150.0,0.0004812,30]
[340625652,1729551040407,-150.0,0.00048121,30]
[340625653,1729551040417,-150.0,0.00048126,30]
[340625654,1729551040426,-150.0,0.00048126,30]
[340625655,1729551040436,-150.0,0.0004813,30]
[340625656,1729551040445,-150.0,0.0004813,30]
[340625657,1729551040454,-150.0,0.00048135,30]
[340625658,1729551040464,-150.0,0.00048138,30]
[340625659,1729551040474,-150.0,0.00048139,30]
[340625660,1729551040483,-150.0,0.0004814,30]
[340625661,1729551040493,-150.0,0.00048144,30]
[340625662,1729551040502,-150.0,0.00048148,30]
[340625663,1729551040511,-150.0,0.0004815,30]
[340625664,1729551040520,-150.0,0.00048153,30]
[340625665,1729551040530,-150.0,0.00048157,30]
[340625666,1729551040539,-150.0,0.0004816,30]
[340625667,1729551040548,-150.0,0.0004816,30]
[340625668,1729551040558,-150.0,0.00048162,30]
[340625669,1729551040568,-3500.22,0.00048163,120]
[340625670,1729551040577,-500.0,0.00048163,120]
[340625671,1729551040586,-500.0,0.00048163,120]
[340625672,1729551040595,-500.0,0.00048163,120]
[340625673,1729551040604,-500.0,0.00048163,120]
[340625674,1729551040614,-500.0,0.00048163,120]
[340625675,1729551040623,-2054.9,0.00048163,120]
[340625676,1729551040633,-2630.0,0.00048163,120]
[340625677,1729551040642,-2463.08,0.00048163,120]
[340625678,1729551040651,-2025.89,0.00048163,120]
[340625679,1729551040661,-2910.24,0.00048163,120]
[340625680,1729551040670,-500.0,0.00048163,120]
[340625681,1729551040679,-500.0,0.00048163,120]
[340625682,1729551040689,-2973.28,0.00048163,120]
[340625683,1729551040698,-500.0,0.00048163,120]
[340625684,1729551040710,-500.0,0.00048163,120]
[340625685,1729551040724,-500.0,0.00048163,120]
[340625686,1729551040733,-500.0,0.00048163,120]
[340625687,1729551040742,-2325.06,0.00048163,120]
[340625688,1729551040751,-154.69,0.00048163,120]
[340625689,1729551040760,-2770.18,0.00048163,120]
[340625690,1729551040769,-500.0,0.00048163,120]
[340625691,1729551040778,-2300.53,0.00048163,120]
[340625692,1729551040787,-500.0,0.00048163,120]
[340625693,1729551040797,-2354.89,0.00048163,120]
[340625694,1729551040806,-501.22,0.00048163,120]
[340625695,1729551040816,-500.0,0.00048163,120]
[340625696,1729551040825,-461.81577032,0.00048163,120]
[340625697,1729551040834,-1266.98,0.00048163,120]
[340625698,1729551040843,-2793.16,0.00048163,120]
[340625699,1729551040853,-150.0,0.00048165,30]
[340625700,1729551040863,-150.0,0.00048165,30]
[340625702,1729551040872,-150.0,0.00048166,30]
[340625704,1729551040882,-150.0,0.0004817,30]
[340625705,1729551040892,-150.0,0.00048171,30]
[340625706,1729551040901,-150.0,0.00048175,30]
[340625707,1729551040911,-150.0,0.0004818,30]
[340625708,1729551040920,-150.0,0.0004818,30]
[340625709,1729551040930,-150.0,0.00048184,30]
[340625710,1729551040939,-8033.38858656,0.00048189,60]
[340625711,1729551040949,-150.0,0.00048189,30]
[340625712,1729551040958,-150.0,0.00048189,30]
[340625713,1729551040968,-150.0,0.0004819,30]
[340625714,1729551040978,-150.0,0.00048193,30]
[340625716,1729551040987,-150.0,0.00048193,30]
[340625717,1729551040997,-150.0,0.00048198,30]
[340625718,1729551041009,-30000.0,0.000482,120]
[340625719,1729551041018,-1997.94,0.000482,120]
[340625720,1729551041028,-150.0,0.000482,30]
[340625721,1729551041038,-150.0,0.000482,30]
[340625722,1729551041047,-150.0,0.00048202,30]
[340625723,1729551041057,-150.0,0.00048207,30]
[340625724,1729551041066,-150.0,0.0004821,30]
[340625725,1729551041075,-500.0,0.00048219,120]
[340625726,1729551041085,-500.0,0.00048219,120]
[340625727,1729551041095,-500.0,0.00048219,120]
[340625729,1729551041104,-500.0,0.00048219,120]
[340625731,1729551041114,-500.0,0.00048219,120]
[340625733,1729551041123,-2141.23,0.00048219,120]
[340625734,1729551041133,-500.0,0.00048219,120]
[340625735,1729551041143,-500.0,0.00048219,120]
[340625736,1729551041152,-500.0,0.00048219,120]
[340625738,1729551041162,-1939.88,0.00048219,120]
[340625740,1729551041171,-563.69,0.00048219,60]
[340625742,1729551041181,-500.0,0.00048219,14]
[340625744,1729551041190,-500.0,0.00048219,120]
[340625745,1729551041199,-500.0,0.00048219,120]
[340625747,1729551041209,-500.0,0.00048219,120]
[340625749,1729551041218,-500.0,0.00048219,120]
[340625751,1729551041228,-500.0,0.00048219,120]
[340625753,1729551041238,-707.28,0.00048219,120]
[340625755,1729551041247,-500.0,0.00048219,120]
[340625757,1729551041257,-268.64977326,0.00048219,120]
[340625759,1729551041267,-454.88839338,0.00048219,120]
[340625761,1729551041276,-500.0,0.00048219,120]
[340625763,1729551041286,-500.0,0.00048219,120]
[340625765,1729551041296,-1000.0,0.00048219,120]
[340625767,1729551041305,-506.04677184,0.00048219,120]
[340625769,1729551041314,-1272.36,0.00048219,120]
[340625771,1729551041323,-150.0,0.0004822,30]
[340625773,1729551041335,-150.0,0.0004822,30]
[340625775,1729551041344,-150.0,0.0004822,30]
[340625777,1729551041354,-150.0,0.0004822,30]
[340625779,1729551041363,-150.0,0.0004823,30]
[340625781,1729551041372,-150.0,0.0004824,30]
[340625783,1729551041381,-150.0,0.0004824,30]
[340625785,1729551041391,-150.0,0.00048248,30]
[340625786,1729551041401,-150.0,0.0004825,30]
[340625787,1729551041411,-150.0,0.00048251,30]
[340625788,1729551041420,-150.0,0.0004826,30]
[340625789,1729551041430,-150.0,0.0004827,30]
[340625790,1729551041439,-150.0,0.00048275,30]
[340625791,1729551041449,-150.0,0.00048275,30]
[340625792,1729551041459,-150.0,0.0004828,30]
[340625793,1729551041468,-150.0,0.0004828,30]
[340625794,1729551041476,-2000.0,0.00048284,90]
[340625795,1729551041486,-150.0,0.0004829,30]
[340625796,1729551041496,-20601.78183136,0.000483,120]
[340625797,1729551041506,-150.0,0.000483,30]
[340625798,1729551041516,-150.0,0.00048303,30]
[340625799,1729551041525,-150.0,0.0004831,30]
[340625800,1729551041535,-150.0,0.00048314,30]
[340625801,1729551041544,-150.0,0.0004832,30]
[340625802,1729551041554,-150.0,0.0004832,30]
[340625803,1729551041564,-150.0,0.0004833,30]
[340625804,1729551041573,-150.0,0.0004833,30]
[340625805,1729551041583,-150.0,0.0004833,30]
[340625806,1729551041592,-150.0,0.0004834,30]
[340625807,1729551041602,-150.0,0.0004835,30]
[340625808,1729551041611,-150.0,0.00048358,30]
[340625809,1729551041620,-150.0,0.0004836,30]
[340625810,1729551041630,-150.0,0.0004836,30]
[340625811,1729551041639,-150.0,0.0004837,30]
[340625812,1729551041648,-150.0,0.00048377,30]
[340625813,1729551041657,-845.3598588,0.0004838,3]
[340625814,1729551041666,-150.0,0.0004838,30]
[340625815,1729551041676,-150.0,0.00048385,30]
[340625816,1729551041686,-150.0,0.00048385,30]
[340625817,1729551041695,-412.0,0.00048386,120]
[340625818,1729551041705,-150.0,0.0004839,30]
[340625819,1729551041715,-65205.50263508,0.000484,10]
[340625820,1729551041732,-821194.67071109,0.000484,10]
[340625821,1729551041743,-462.45588772,0.000484,10]
[340625822,1729551041754,-721.27374421,0.000484,10]
[340625823,1729551041771,-500.0,0.00048163,120]
[340625824,1729551041781,-2144.17619719,0.000484,10]
[340625825,1729551041800,-819.45729106,0.000484,10]
[340625826,1729551041811,-366.40734602,0.000484,10]
[340625827,1729551041823,-486.03898912,0.000484,10]
[340625828,1729551041834,-951.06924913,0.000484,10]
[340625829,1729551041848,-6005.94651447,0.000484,10]
[340625830,1729551041859,-1340.78689206,0.000484,10]
[340625831,1729551041870,-255.4974,0.000484,10]
[340625832,1729551041882,-302.2027,0.000484,10]
[340625833,1729551041894,-7203.07150963,0.000484,10]
[340625834,1729551041905,-284.0,0.000484,10]
[340625835,1729551041920,-211261.66370151,0.000484,10]
[340625836,1729551041931,-1125.95213341,0.000484,10]
[340625837,1729551041943,-959.29524361,0.000484,10]
[340625838,1729551041955,-1341.45000002,0.000484,10]
[340625839,1729551041968,-262.894995,0.000484,10]
[340625846,1729551043247,-282.7923,0.000443,2]
[340625847,1729551043257,-8009.52700921,0.00047789,2]
[340625848,1729551043269,-1201.1368108,0.00047789,2]
[340625849,1729551043281,-604.7629599,0.00047789,2]
[340625850,1729551043293,-492.59682751,0.00047789,2]
[340625851,1729551043305,-27333.75779258,0.00047789,2]
[340625852,1729551043315,-545993.13738507,0.000484,10]
[340625853,1729551043330,-12349.94436848,0.000484,10]
[340625854,1729551043342,-819.47715629,0.000484,10]
[340625855,1729551043469,-3953.81927455,0.000484,10]
[340625856,1729551043481,-642.70249532,0.000484,10]
[340625857,1729551043505,-1109.25964547,0.000484,10]
[340625858,1729551043632,-382.92113158,0.000484,10]
[340625861,1729551045482,-5917.9735355,0.000484,10]
[340625862,1729551045643,-500.0,0.00047889,120]
[340625863,1729551045652,-26394.79898767,0.000484,10]
[340625864,1729551045663,-4238.77773235,0.000484,10]
[340625865,1729551045674,-5360.8,0.000484,10]
[340625866,1729551045688,-3888.80813399,0.000484,10]
[340625872,1729551090853,250.0,0.0001,2]
[340625880,1729551998154,150.0,0.00015,3]
[340625896,1729552231766,-150.0,0.00010949,2]
[340625897,1729552231776,-155.42,0.00010959,2]
[340625898,1729552231786,-156.1,0.00010959,2]
[340625899,1729552231795,-300.0,0.00012,2]
[340625900,1729552231805,-350.0,0.00014,2]
[340625901,1729552231814,-400.0,0.00016,2]
[340625902,1729552231824,-450.0,0.00018,2]
[340625903,1729552231833,-442.0,0.000191,2]
[340625904,1729552231843,-499.99,0.00019726,2]
[340625905,1729552231852,-500.0,0.0002,2]
[340625906,1729552231862,-550.0,0.00022,2]
[340625907,1729552231871,-317.84,0.00025,2]
[340625908,1729552231881,-1007.12,0.00025,2]
[340625909,1729552231890,-183.4168996,0.00032877,2]
[340625910,1729552231899,-172.4,0.00033918,2]
[340625911,1729552231908,-159.87,0.00034814,30]
[340625912,1729552231920,-705.94713009,0.00034849,120]
[340625913,1729552231929,-270.38,0.0004,120]